Cogmind - Beta 10.1 @@@ ROGUE MODE // 2020.09.23 @ 10:15:16 Player: FUTURIST Result: Destroyed by G-47 Trooper with Particle Gun Performance ------------- Evolutions (2) 1000 Regions Visited (5) 1000 Robots Destroyed (40) 200 Value Destroyed (1120) 1120 Prototype IDs (0) 0 Alien Tech Used (0) 0 Bonus (288) 288 TOTAL SCORE: 3608 Bonus ------- High Alert Combat Kills 88 Entered Garrisons 200 Cogmind --------- Core Integrity 0/550 Matter 57/300 Energy 100/100 System Corruption 1% Temperature Cool (9) Movement Flying (920) Ox11 Location -8/Garrison Parts ------- > --- POWER (1) -------- (None) > --- PROPULSION (4) --- Flight Unit > --- UTILITY (4) ------ Large Storage Unit High-capacity Storage Unit Improved Terrain Scan Processor Advanced Targeting Computer > --- WEAPON (2) ------- (None) > --- INVENTORY (18) --- Light Ion Engine Improved Ion Engine Large Battery (300) Peak State ------------ > --- POWER ------------ Improved Ion Engine > --- PROPULSION ------- Aluminum Leg Aluminum Leg Aluminum Leg Carbon-fiber Leg > --- UTILITY ---------- High-capacity Storage Unit Improved Terrain Scan Processor Advanced Targeting Computer Hardened Medium Armor Plating > --- WEAPON ----------- Minigun High-powered Shotgun > --- INVENTORY -------- Light Ion Engine Improved Ion Engine Aluminum Leg Small Storage Unit Large Storage Unit Large Battery Medium Matter Pod Pulse Rifle High-powered Shotgun High-powered Shotgun Flak Cannon [Rating: 26] Favorites ----------- Power Improved Ion Engine Engine Improved Ion Engine Power Core Light Nuclear Core Propulsion Aluminum Leg Leg Aluminum Leg Flight Unit Flight Unit Utility High-capacity Storage Unit Device Improved Terrain Scanner Storage High-capacity Storage Unit Processor Advanced Targeting Computer Protection Hardened Medium Armor Plating Weapon High-powered Shotgun Energy Gun Medium Laser Ballistic Gun High-powered Shotgun Ballistic Cannon Flak Cannon Launcher Rocket Launcher Build | -11 -10 -9 -9 -8 -8 ------- Run | Scr Mat Mat Min Mat Gar Slots Evolved 4 | . . 2 . 2 . Power . | . . . . . . Propulsion 2 | . . 2 . . . Utility 2 | . . . . 2 . Weapon . | . . . . . . Parts Attached 47 | 3 13 3 . 15 13 Power 6 | . 2 . . 1 3 Engine 4 | . 2 . . 1 1 Core 2 | . . . . . 2 Reactor . | . . . . . . Propulsion 10 | 1 3 . . 2 4 Treads . | . . . . . . Leg 8 | 1 3 . . 2 2 Wheel . | . . . . . . Hover . | . . . . . . Flight 2 | . . . . . 2 Utility 10 | 1 2 1 . 5 1 Device 1 | . 1 . . . . Storage 6 | 1 1 1 . 2 1 Processor 2 | . . . . 2 . Hackware . | . . . . . . Protection 1 | . . . . 1 . Artifact . | . . . . . . Weapon 21 | 1 6 2 . 7 5 Energy Gun 8 | 1 3 2 . 1 1 Energy Cannon . | . . . . . . Ballistic Gun 10 | . 3 . . 4 3 Ballistic Cannon 2 | . . . . 1 1 Launcher 1 | . . . . 1 . Special Weapon . | . . . . . . Impact Weapon . | . . . . . . Slashing Weapon . | . . . . . . Piercing Weapon . | . . . . . . Special Melee Weapon . | . . . . . . Unidentified Prototypes . | . . . . . . Parts Lost 26 | . 7 3 . 1 15 Power 5 | . 1 . . 1 3 Propulsion 7 | . 2 . . . 5 Utility 2 | . 1 . . . 1 Weapon 12 | . 3 3 . . 6 Highest Loss Streak 11 | . 7 3 . 1 11 Average Slot Usage (%) 79 | . 65 71 66 89 86 Engine 8 | . 7 11 11 8 6 Leg 23 | . 19 22 22 26 24 Storage 15 | . 14 22 22 20 10 Processor 8 | . . . . 8 18 Protection 4 | . . . . 7 6 Energy Gun 4 | . 4 11 11 3 1 Ballistic Gun 11 | . 16 4 . 8 14 Ballistic Cannon 1 | . . . . 4 . Naked Turns . | . . . . . . Heaviest Build 60 | 6 43 43 41 60 54 Greatest Support 45 | 10 20 20 20 45 45 Greatest Overweight (x) 13 | . 10 2 2 2 13 Average Overweight (x) 1 | . 1 2 2 1 3 Largest Inventory Capacity 18 | 6 12 14 14 14 18 Average Capacity 12 | 5 11 14 14 13 12 Most Carried 12 | 5 7 3 4 11 12 Average Carried 6 | 4 4 1 3 6 10 Final Capacity 18 | 6 12 14 14 12 18 Final Carried 10 | 5 3 3 4 10 3 Class Distribution -------------------- 100% | Mutant Dominant Class ---------------- Mutant | -10/Materials Mutant | -9/Materials Mutant | -9/Mines Mutant | -8/Materials Mutant | -8/Garrison Resources | -11 -10 -9 -9 -8 -8 ----------- Run | Scr Mat Mat Min Mat Gar Matter Collected 817 | 230 137 54 . 245 151 Remotely . | . . . . . . Salvage Created 909 | . 203 54 . 256 396 Parts 57 | . 10 . . 22 25 Haulers Intercepted 1 | . . . . 1 . Recyclers Shooed . | . . . . . . Parts Field Recycled . | . . . . . . Retrieved Matter . | . . . . . . Parts Self-Destructed . | . . . . . . Prevented . | . . . . . . Kills | -11 -10 -9 -9 -8 -8 ------- Run | Scr Mat Mat Min Mat Gar Combat Hostiles Destroyed 38 | . 8 1 . 13 16 Guns 36 | . 8 1 . 11 16 Cannons 2 | . . . . 2 . Classes Destroyed 6 | . 2 1 . 2 1 Builder 1 | . . . . 1 . Hauler 1 | . . . . 1 . Swarmer 23 | . 5 . . 10 8 Grunt 10 | . 3 . . 1 6 Duelist 2 | . . . . . 2 Sentry 3 | . . 1 . 2 . Best Kill Streak 5 | . 4 1 . 5 5 Combat Bots Only 5 | . 4 1 . 4 5 Max Kills in Single Turn 2 | . 1 1 . 2 1 Gunslinging . | . . . . . . Exploded . | . . . . . . Melee . | . . . . . . Uniques/NPCs Destroyed . | . . . . . . Combat | -11 -10 -9 -9 -8 -8 -------- Run | Scr Mat Mat Min Mat Gar Damage Taken 3537 | . 770 257 . 499 2011 Core 728 | . 152 18 . 98 460 Absorbed by Shields . | . . . . . . Core Remaining (%) 78 | 100 39 . 95 . . Volleys Fired 146 | . 31 12 . 45 58 Largest 2 | . 2 1 . 2 2 Hottest 69 | . 65 65 . 69 69 Shots Fired 163 | . 34 12 . 55 62 Gun 150 | . 34 12 . 45 59 Cannon 13 | . . . . 10 3 Launcher . | . . . . . . Special . | . . . . . . Kinetic 135 | . 22 . . 55 58 Thermal 16 | . . 12 . . 4 Explosive . | . . . . . . Electromagnetic 12 | . 12 . . . . Robot Hit Streak 12 | . 5 11 . 12 12 Robot Miss Streak 8 | . 4 1 . 8 5 Penetration Max . | . . . . . . Secondary Targets 1 | . 1 . . . . Max Gunslinging Chain 1 | . 1 . . . . Shots Hit Robots 131 | . 22 11 . 46 52 Core Hits 72 | . 15 2 . 22 33 Critical Hits . | . . . . . . Critical Kills . | . . . . . . Critical Parts Destroyed . | . . . . . . Melee Attacks . | . . . . . . Impact . | . . . . . . Slashing . | . . . . . . Piercing . | . . . . . . Sneak Attacks . | . . . . . . Combat Hostiles . | . . . . . . Follow-up Attacks . | . . . . . . Damage Inflicted 2259 | . 279 139 . 724 1117 Guns 2132 | . 279 139 . 658 1056 Cannons 127 | . . . . 66 61 Explosions . | . . . . . . Melee . | . . . . . . Ramming . | . . . . . . Kinetic 1903 | . 132 . . 724 1047 Thermal 209 | . . 139 . . 70 Explosive . | . . . . . . Electromagnetic 147 | . 147 . . . . Impact . | . . . . . . Slashing . | . . . . . . Piercing . | . . . . . . Highest Corruption 1 | . . . . 1 1 Average Corruption 1 | . . . . 1 1 Corruption Purged . | . . . . . . Effects 4 | . . . . 1 3 Data Loss (minor) 3 | . . . . 1 2 Targeting Errors 1 | . . . . . 1 Overload Shots . | . . . . . . Overflow Damage . | . . . . . . Projectiles . | . . . . . . Explosions . | . . . . . . Melee . | . . . . . . Knockbacks 5 | . . . . 3 2 Impact . | . . . . . . Kinetic 5 | . . . . 3 2 Secondary . | . . . . . . Self-Inflicted Damage . | . . . . . . Shots . | . . . . . . Rammed . | . . . . . . Targets Rammed . | . . . . . . Kicked . | . . . . . . Crushed . | . . . . . . Highest Temperature 125 | . 33 125 . 36 78 Average Temperature 26 | . 13 62 . 16 19 Received Heat Transfer 1317 | . 201 99 . 90 927 Siege Activations . | . . . . . . Robots Corrupted . | . . . . . . Combat Hostiles . | . . . . . . Parts Fried 1 | . 1 . . . . Impact Corruptions . | . . . . . . Robots Melted . | . . . . . . Combat Hostiles . | . . . . . . Parts Melted 2 | . . 2 . . . Heat Transferred 555 | . . 407 . . 148 Parts Sabotaged . | . . . . . . Parts Stolen . | . . . . . . Parts Stripped . | . . . . . . Power Chain Reactions . | . . . . . . Missiles Intercepted . | . . . . . . Alert | -11 -10 -9 -9 -8 -8 ------- Run | Scr Mat Mat Min Mat Gar Peak Influence 524 | . 145 30 11 210 524 Initial 139 | . . . 11 3 139 Average 143 | . 45 13 11 80 358 Maximum Alert Level 2 | . . . . 1 2 Low Security (%) 75 | 100 100 100 100 89 29 Level 1 12 | . . . . 10 30 Level 2 11 | . . . . . 40 Level 3 . | . . . . . . Level 4 . | . . . . . . Level 5 . | . . . . . . High Security . | . . . . . . Max Security . | . . . . . . Squads Dispatched 3 | . 1 2 . . . Investigation 1 | . 1 . . . . Extermination . | . . . . . . Reinforcement 2 | . . 2 . . . Assault . | . . . . . . Garrison . | . . . . . . Intercept . | . . . . . . Construction Impeded . | . . . . . . Haulers Reinforced . | . . . . . . Stealth | -11 -10 -9 -9 -8 -8 --------- Run | Scr Mat Mat Min Mat Gar Distress Signals 4 | . . 1 . 3 . Communications Jammed . | . . . . . . Distress Signals . | . . . . . . Times Spotted 55 | . 10 4 . 20 21 Peak Tracking Total 7 | . 7 2 . 5 7 Tactical Retreats 3 | . 1 . . . 2 Traps | -11 -10 -9 -9 -8 -8 ------- Run | Scr Mat Mat Min Mat Gar Traps Triggered 5 | . 1 . . 1 3 Indirectly . | . . . . . . Trap Hack Attempts . | . . . . . . Triggered . | . . . . . . Disarmed . | . . . . . . Reprogrammed . | . . . . . . Reused . | . . . . . . Traps Extracted . | . . . . . . Installed . | . . . . . . Triggered . | . . . . . . Machines | -11 -10 -9 -9 -8 -8 ---------- Run | Scr Mat Mat Min Mat Gar Machines Disabled 2 | . . . . 1 1 Max in Single Turn 1 | . . . . 1 1 Garrison Relay 1 | . . . . . 1 Machines Sabotaged . | . . . . . . Garrisons Compromised . | . . . . . . Overloaded Fab Kills . | . . . . . . Fab Network Shutdowns . | . . . . . . Hacking | -11 -10 -9 -9 -8 -8 --------- Run | Scr Mat Mat Min Mat Gar Machines Accessed 1 | . . . . 1 . Terminals . | . . . . . . Fabricators . | . . . . . . Repair Stations . | . . . . . . Recycling Units . | . . . . . . Scanalyzers . | . . . . . . Garrison Access 1 | . . . . 1 . Total Hacks 1 | . . . . 1 . Successful 1 | . . . . 1 . Failed . | . . . . . . Catastrophic . | . . . . . . Database Lockouts . | . . . . . . Manual . | . . . . . . Terminals . | . . . . . . Fabricators . | . . . . . . Repair Stations . | . . . . . . Recycling Units . | . . . . . . Scanalyzers . | . . . . . . Garrison Access 1 | . . . . 1 . Terminal Hacks . | . . . . . . Fabricator Hacks . | . . . . . . Repair Station Hacks . | . . . . . . Recycling Unit Hacks . | . . . . . . Scanalyzer . | . . . . . . Garrison Access Hacks 1 | . . . . 1 . Unlock Access 1 | . . . . 1 . Unauthorized Hacks . | . . . . . . Terminals . | . . . . . . Fabricators . | . . . . . . Repair Stations . | . . . . . . Recycling Units . | . . . . . . Scanalyzers . | . . . . . . Garrison Access . | . . . . . . Data Cores Recovered . | . . . . . . Used . | . . . . . . Hacking Detections 1 | . . . . 1 . Full Trace Events . | . . . . . . Feedback Events . | . . . . . . Feedback Blocked . | . . . . . . Robot Schematics Acquired . | . . . . . . Robots Built . | . . . . . . Matter . | . . . . . . Time . | . . . . . . Total Robot Build Rating . | . . . . . . Part Schematics Acquired . | . . . . . . Parts Built . | . . . . . . Matter . | . . . . . . Time . | . . . . . . Total Part Build Rating . | . . . . . . Parts Repaired . | . . . . . . Time . | . . . . . . Parts Recycled . | . . . . . . Recycled Matter . | . . . . . . Retrieved Matter . | . . . . . . Retrieved Components . | . . . . . . Parts Scanalyzed . | . . . . . . Part Schematics Acquired . | . . . . . . Parts Damaged . | . . . . . . Bothacking | -11 -10 -9 -9 -8 -8 ------------ Run | Scr Mat Mat Min Mat Gar Used RIF Installer . | . . . . . . Robots Hacked . | . . . . . . Non-combat . | . . . . . . Combat . | . . . . . . Robot Hacks Applied . | . . . . . . Relay Couplers Released 5 | . . . . . 5 Machine Destruction 5 | . . . . . 5 Robots Rewired . | . . . . . . Allies Hacked . | . . . . . . Hacks Repelled . | . . . . . . Allies | -11 -10 -9 -9 -8 -8 -------- Run | Scr Mat Mat Min Mat Gar Total Allies . | . . . . . . Largest Group . | . . . . . . Highest-Rated Group . | . . . . . . Highest-Rated Ally . | . . . . . . Total Orders . | . . . . . . Ally Attacks . | . . . . . . Total Damage . | . . . . . . Kills . | . . . . . . Allies Corrupted . | . . . . . . Allies Melted . | . . . . . . Intel | -11 -10 -9 -9 -8 -8 ------- Run | Scr Mat Mat Min Mat Gar Robot Analysis Total . | . . . . . . Derelict Logs Recovered . | . . . . . . Drone Launches . | . . . . . . Drone Recoveries . | . . . . . . Exploration | -11 -10 -9 -9 -8 -8 ------------- Run | Scr Mat Mat Min Mat Gar Turns Passed 1895 | 60 446 126 109 592 562 Spaces Moved 793 | 47 213 54 61 277 141 Core 22 | 8 13 . . . 1 Treads . | . . . . . . Legs 756 | 39 200 54 61 277 125 Wheels . | . . . . . . Hover . | . . . . . . Flight 15 | . . . . . 15 Fastest Speed 50 | 50 120 180 180 150 150 Average Speed 185 | 108 170 180 180 165 278 Slowest Speed 1110 | 120 550 180 180 180 1110 Overloaded Moves . | . . . . . . Propulsion Burnouts . | . . . . . . Robots Hopped . | . . . . . . Cave-ins Triggered . | . . . . . . Exploration Rate (%) 23 | 3 32 9 29 33 36 Regions Visited 5 Branch Regions 1 Pre-discovered Areas . | . . . . . . Known Exits Taken 1 | . . . . 1 . Unknown Exits Taken 4 | 1 1 1 1 . . Scrap Searched . | . . . . . . Spaces Dug . | . . . . . . Terrain Destroyed . | . . . . . . Melee . | . . . . . . Projectile . | . . . . . . AOE . | . . . . . . Terrain Rammed . | . . . . . . Walls Destroyed . | . . . . . . Machines Disabled . | . . . . . . Actions | -11 -10 -9 -9 -8 -8 --------- Run | Scr Mat Mat Min Mat Gar Total 1056 | 54 264 71 61 353 253 Wait 6 | . . . . . 6 Move 789 | 46 212 53 60 277 141 Hop . | . . . . . . Pick Up 35 | 5 8 3 1 14 4 Fast Attach 4 | 3 . . . . 1 Attach 28 | . 10 3 . 6 9 Detach . | . . . . . . Swap 15 | . 3 . . 9 3 Drop 5 | . . . . 2 3 Fire 146 | . 31 12 . 45 58 Melee . | . . . . . . Ram . | . . . . . . Kick . | . . . . . . Crush . | . . . . . . Escape Stasis 28 | . . . . . 28 Rewire . | . . . . . . Trap . | . . . . . . Miscellaneous . | . . . . . . Route ------- -11/Scrapyard -10/Materials (discovered 2 exits: [*Mat] / [*Min]) -9/Materials -9/Mines -8/Materials -8/Garrison History --------- Turn | Location | Event 9 | -11/Scrapyard | Discovered new exit (range 15) 61 | -11/Scrapyard | Entered Materials 111 | -10/Materials | Discovered new exit (range 16) 245 | -10/Materials | Discovered new exit (range 5) 326 | -10/Materials | Build established: Mutant 366 | -10/Materials | Core integrity fell below 50% 407 | -10/Materials | Lost 7 parts (1p2n1u3w) 507 | -10/Materials | Entered another Materials area 507 | -9/Materials | Evolved 2 slots: Propulsion x2 608 | -9/Materials | Lost 3 parts (3w) 618 | -9/Materials | Discovered new exit (range 9) 633 | -9/Materials | Entered Mines 664 | -9/Mines | Received a Rocket Launcher from a helpful Derelict 681 | -9/Mines | Discovered new exit (range 6) 742 | -9/Mines | Entered Materials 742 | -8/Materials | Evolved 2 slots: Utility x2 1334 | -8/Materials | Identified exit to Garrison 1334 | -8/Materials | Entered Garrison 1348 | -8/Garrison | Triggered checkpoint 1612 | -8/Garrison | Triggered checkpoint 1679 | -8/Garrison | Garrison Relay disabled 1776 | -8/Garrison | Core integrity fell below 50% 1803 | -8/Garrison | Core integrity fell below 20% 1831 | -8/Garrison | Lost 11 parts (2p3n1u5w) 1846 | -8/Garrison | Triggered checkpoint 1896 | -8/Garrison | Destroyed by G-47 Trooper with Particle Gun Last Messages --------------- 01762_ Carbon-fiber Leg destroyed. 01764_ Minigun destroyed. 01767_ G-47 Trooper destroyed. 01769_ Lgt. Nuclear Core destroyed. 01771_ G-47 Trooper destroyed. 01778_ G-47 Trooper knocked back. 01781_ Lgt. Nuclear Core destroyed. 01783_ Flak Cannon destroyed. 01786_ Acquired 45 matter. 01786_ Hpw. Shotgun destroyed. 01794_ G-47 Trooper destroyed. 01796_ Hpw. Shotgun destroyed. 01797_ System corrupted: Hpw. Shotgun targeting data glitched. 01800_ Hpw. Shotgun destroyed. 01807_ Destroyed Particle Gun. 01814_ G-47 Trooper destroyed. 01846_ Beams of light sweep through the air. An alarm sounds. 01874_ Lgt. Ion Engine destroyed. 01878_ Pulse Rifle destroyed. 01882_ Aluminum Leg destroyed. Map ----- +----------------------------------------------------+ | ?????????????????????????????????????????????????? | | ?????????????????????????????????????????????????? | | ##???????????????????????????????????????????????? | | *#???????????????????????????????????????????????? | | #???????????????????????????????????????????????? | | =#???????????????????????????????????????????????? | | ##???????????????????????????????????????????????? | | ?????????????????????????????????????????????????? | | ?????????????????????????????????????????????????? | | ?????????????????????????????????????????????????? | | ?????????????????????????????????????????????????? | | ?????????????????????????????????????????????????? | | ?????????????????????????????????????????????????? | | ?????????????????????????????????????????????????? | | ?????????????????????????????????????????????????? | | ?????????????????????????????????????????????????? | | ?????????????????????????????????????????????????? | | ?????????????????????????????????????????????????? | | ?????????????????????????????????????????????????? | | ?????????????????????????????????????????????????? | | ???????????#####?????????????????????????????????? | | ???????????# ??????????????????????????????????? | | ############ """######?????????#?????????????????? | | % "%" ######## #?????????????????? | | * " g #?????????????????? | | [ g g @ #?????????????????? | | ####### ## ## ###########?????????????????? | | ??????# ## ## #???????????????????????????? | | ????? "???????????????????????????? | | ????# "???????????????????????????? | | ????# "???????????????????????????? | | ????# "???????????????????????????? | | ????### ## ## #???????????????????????????? | | ??????# ## ## #???????????????????????????? | | ??????# ??????????????????????????? | | ??????# ??????????????????????????? | | ??????# ###?????????????????????????? | | ??????## ##""""######???????????????????????????? | | ???????? ???????????????????????????????????????? | | ???????? ???????????????????????????????????????? | | ?????????????????????????????????????????????????? | | ?????????????????????????????????????????????????? | | ?????????????????????????????????????????????????? | | ?????????????????????????????????????????????????? | | ?????????????????????????????????????????????????? | | ?????????????????????????????????????????????????? | | ?????????????????????????????????????????????????? | | ?????????????????????????????????????????????????? | | ?????????????????????????????????????????????????? | | ?????????????????????????????????????????????????? | +----------------------------------------------------+ Best States ------------- Heat Dissipation 31 Energy Generation 14 Energy Capacity 425 Matter Stores 322 Matter Capacity 400 Sight Range 16 Terrain Scan Range 16 Terrain Scan Density 110 Armor Coverage 225 Evasion (%) 50 Targeting Accuracy 8 Item Schematics ----------------- None Robot Schematics ------------------ None Fabricated ------------ Nothing Alien Tech Used ----------------- None Achievements -------------- None Challenges ------------ None Game ------ Seed RiotBackupReactor Manual? 0 Play Time 00:26:39 Cumulative 3.8 hours Start 2020.09.23 @ 09:53:32 End 2020.09.23 @ 10:15:16 Sessions 1 Manual Loads 0 Difficulty Rogue Special Mode None Game No. 24 Rogue 24 Adventurer 0 Explorer 0 Win Type - Total 0 Types 0/0/0/0/0/0/0/0/0 Lore% 0 Gallery% 9 Achievement% 2 Wizard Run 0 Options --------- ASCII 0 Keyboard 0 Movement Mouse Keybinds 0 Fullscreen 1 Font 18/SmallcapsGlow Map View 76x50 Tactical HUD 1 Map Filters NONE Filters NONE Steam 1 RUN: cfa473cc-7415-402a-832f-e56f1eef87b0